[Event "World Chess Trophy 2018"]
[Site "Tenerife"]
[Date "2018.06.21"]
[Round "5"]
[White "Baete, Guy"]
[Black "Vespe, Francesco"]
[Result "1-0"]
[ECO "D00"]
[WhiteElo "1861"]
[BlackElo "1853"]
[Annotator "NA"]
[PlyCount "175"]
[EventDate "2018.06.17"]
[EventType "swiss"]
[EventCountry "ESP"]
[SourceTitle "playchess.com"]
[Source "ChessBase"]
[SourceQuality "1"]
[TimeControl "5400+30"]

1. d4 {[%emt 0:01:50]} d5 {[%emt 0:00:19]} 2. e4 {[%emt 0:00:08]} dxe4 {[%emt 0:00:32]} 3. Nc3 {[%emt 0:00:09]} Nf6 {[%emt 0:00:23]} 4. f3 {[%emt 0:00:08]} e3 {[%emt 0:01:04]} ({Lieber} 4... exf3 $15 5. Nxf3 e6) 5. Bxe3 {[%emt 0:00:02]} e6 {[%emt 0:01:27]} 6. Bd3 {[%emt 0:00:10]} Be7 {[%emt 0:00:29] D00: Damenbauernspiele} 7. Nge2 {[%emt 0:00:38]} Nbd7 {[%emt 0:00:33]} 8. O-O {[%emt 0:00:00]} O-O {[%emt 0:00:46]} 9. Ne4 {[%emt 0:00:44]} e5 $146 {[%emt 0:04:26]} ({Vorgänger:} 9... b6 10. c4 Bb7 11. Qc2 c5 12. Nxf6+ Nxf6 13. Rad1 Qc8 14. Kh1 h6 {½-½ (62) Xia,J (2287)-Distaso,A (2119) Civitanova Marche 2013}) 10. c4 {[%emt 0:02:27]} Re8 {[%emt 0:07:45]} 11. d5 {[%emt 0:01:27]} Nxe4 {[%emt 0:01:22]} 12. Bxe4 {[%emt 0:01:15]} Nc5 {[%emt 0:00:48]} 13. Qc2 {[%emt 0:00:42]} g6 {[%emt 0:01:23]} 14. Qd1 {[%emt 0:11:32]} f5 {[%emt 0:07:46]} 15. Bc2 {[%emt 0:00:19]} a5 {[%emt 0:00:27]} 16. Nc3 {[%emt 0:02:35]} Bd7 {[%emt 0:10:35]} 17. Kh1 {[%emt 0:06:19]} Bd6 {[%emt 0:03:25]} 18. Qe1 {[%emt 0:10:20]} Qf6 {[%emt 0:09:24]} 19. Qf2 {[%emt 0:03:26]} b6 {[%emt 0:00:53]} 20. Qd2 {[%emt 0:01:49]} Qh4 {[%emt 0:06:53]} 21. b3 {[%emt 0:04:35]} e4 {[%emt 0:01:25]} 22. f4 {[%emt 0:00:41]} Re7 {[%emt 0:08:49]} 23. g3 {[%emt 0:03:50]} Qh3 {[%emt 0:01:43]} 24. Qg2 {[%emt 0:06:15]} Qh6 {[%emt 0:04:02]} 25. Rad1 {[%emt 0:02:45]} Rae8 {[%emt 0:00:26]} 26. Bb1 {[%emt 0:02:23]} Nd3 {[%emt 0:02:16]} 27. Qe2 {[%emt 0:01:36]} Bb4 {[%emt 0:02:13]} 28. Bd4 {[%emt 0:06:49]} Bc5 {[%emt 0:02:22]} 29. Bxc5 {[%emt 0:01:14]} Nxc5 {[%emt 0:00:06]} 30. Qe3 {[%emt 0:01:05]} Qh3 {[%emt 0:02:26]} 31. Ne2 {[%emt 0:02:15]} Nd3 {[%emt 0:01:09]} 32. Ng1 {[%emt 0:00:41]} Qh5 {[%emt 0:00:31]} 33. Qe2 {[%emt 0:07:44]} Qh6 {[%emt 0:02:01]} 34. Qg2 {[%emt 0:00:27]} Nc5 {[%emt 0:00:35]} 35. Ne2 {[%emt 0:01:02]} Qg7 {[%emt 0:01:17]} 36. h3 {[%emt 0:05:24]} b5 {[%emt 0:00:33]} 37. Nd4 {[%emt 0:01:07]} bxc4 {[%emt 0:00:45]} 38. bxc4 {[%emt 0:00:05]} Ba4 {[%emt 0:01:30]} 39. Bc2 {[%emt 0:00:09]} Bxc2 {[%emt 0:01:07]} 40. Qxc2 {[%emt 0:00:40]} e3 {[%emt 0:00:52]} 41. Ne2 {[%emt 0:01:14]} (41. Rfe1 $11 {remains equal.}) 41... Ne4 {[%emt 0:00:33]} 42. Kg2 {[%emt 0:01:09] [#]} g5 {[%emt 0:00:57]} ({Better is} 42... Nd2 $1 $19 43. Rfe1 Re4) 43. Rb1 {[%emt 0:01:01]} (43. fxg5 $1 $11 {was the only way to keep the balance.} Qxg5 44. Rf3) 43... Nd2 {[%emt 0:01:34]} 44. Qxf5 $2 {[%emt 0:00:31]} (44. fxg5 $17 Re4 45. Rxf5) 44... Nxb1 $2 {[%emt 0:00:24]} ({Less strong is} 44... Nxf1 45. Rxf1 Qb2 46. Qxg5+ Kh8 47. Kf3 $17) (44... Rf8 $19 {has better winning chances.} 45. Qc2 gxf4 46. Rxf4 Nxb1 47. Qxb1 Rxf4 48. Nxf4 Qe5) 45. Rxb1 $2 {[%emt 0:00:06]} (45. Qxb1 $17 {was the only defense.} Re4 46. fxg5) 45... gxf4 {[%emt 0:00:09]} 46. Nxf4 {[%emt 0:01:04]} Rf7 {[%emt 0:00:58]} 47. Qg4 {[%emt 0:00:32]} Qxg4 {[%emt 0:00:21]} 48. hxg4 {[%emt 0:00:04]} h6 {[%emt 0:05:03]} 49. Re1 {[%emt 0:00:35]} Re4 {[%emt 0:01:05]} 50. c5 {[%emt 0:03:30]} Rc4 {[%emt 0:02:01]} 51. Rxe3 {[%emt 0:00:19]} Rxc5 {[%emt 0:00:18]} 52. Re8+ {[%emt 0:00:02]} Kh7 {[%emt 0:00:13]} 53. Re2 {[%emt 0:01:22]} a4 {[%emt 0:00:38]} 54. Rd2 {[%emt 0:00:18]} a3 {[%emt 0:00:32]} 55. g5 {[%emt 0:01:13]} hxg5 {[%emt 0:02:38]} 56. Ne6 {[%emt 0:00:03]} Rb5 {[%emt 0:00:28]} 57. Nxg5+ {[%emt 0:00:03]} Kg7 {[%emt 0:00:19]} 58. Nxf7 {[%emt 0:00:02]} Rb2 {[%emt 0:00:12]} 59. Rf2 {[%emt 0:00:13]} Rb5 {[%emt 0:01:18]} 60. Ne5 {[%emt 0:00:49]} Rxd5 {[%emt 0:00:12]} 61. Nc4 {[%emt 0:01:01]} Rd4 {[%emt 0:01:00]} 62. Nxa3 {[%emt 0:00:19]} c6 {[%emt 0:00:36]} 63. Rc2 {[%emt 0:00:15]} Ra4 {[%emt 0:00:12]} 64. Nc4 {[%emt 0:00:13]} Kf6 {[%emt 0:00:41]} 65. Kf3 {[%emt 0:00:15]} Ke6 {[%emt 0:00:27]} 66. g4 {[%emt 0:00:20]} Ra8 {[%emt 0:00:58]} 67. Re2+ {[%emt 0:00:13]} Kf6 {[%emt 0:00:23]} 68. Kf4 {[%emt 0:00:19]} Ra4 {[%emt 0:00:08]} 69. g5+ {[%emt 0:00:30]} Kg6 {[%emt 0:00:18]} 70. Rc2 {[%emt 0:00:35]} c5 {[%emt 0:00:38]} 71. a3 {[%emt 0:01:27]} Ra8 {[%emt 0:00:29]} 72. Ne5+ {[%emt 0:00:28]} Kg7 {[%emt 0:00:13]} 73. Rc3 {[%emt 0:00:15]} Ra4+ {[%emt 0:00:54]} 74. Kf5 {[%emt 0:00:20]} Ra6 {[%emt 0:01:40]} 75. Nd7 {[%emt 0:00:34]} Ra8 {[%emt 0:00:59]} 76. Nxc5 {[%emt 0:00:13]} Rf8+ {[%emt 0:00:16]} 77. Kg4 {[%emt 0:00:19]} Rf1 {[%emt 0:00:14]} 78. Ne6+ {[%emt 0:00:25]} Kg6 {[%emt 0:00:22]} 79. Nf4+ {[%emt 0:00:19]} Kg7 {[%emt 0:00:14]} 80. Rc7+ {[%emt 0:00:14]} Kg8 {[%emt 0:00:08]} 81. Kf5 {[%emt 0:00:27]} Kf8 {[%emt 0:00:39]} 82. a4 {[%emt 0:00:51]} Ra1 {[%emt 0:00:26]} 83. Kf6 {[%emt 0:01:03]} Ke8 {[%emt 0:00:22]} 84. Re7+ {[%emt 0:01:18]} Kd8 {[%emt 0:00:42]} 85. Ne6+ {[%emt 0:00:19]} Kc8 {[%emt 0:00:07]} 86. Rc7+ {[%emt 0:00:30]} Kb8 {[%emt 0:00:05]} 87. Rc4 {[%emt 0:00:45]} Rf1+ {[%emt 0:00:14]} 88. Nf4 {[%emt 0:00:22]} 1-0

[Event "World Chess Trophy 2018"]
[Site "Tenerife"]
[Date "2018.06.21"]
[Round "6"]
[White "Potterat, Marc"]
[Black "Kohlweyer, Bernd"]
[Result "1/2-1/2"]
[ECO "A46"]
[WhiteElo "2130"]
[BlackElo "2345"]
[Annotator "ChessBase"]
[PlyCount "46"]
[EventDate "2018.06.21"]
[EventType "swiss"]
[EventCountry "ESP"]
[SourceTitle "playchess.com"]
[Source "ChessBase"]
[SourceQuality "1"]
[TimeControl "5400+30"]

1. d4 {[%emt 0:00:00]} Nf6 {[%emt 0:00:08]} 2. Nf3 {[%emt 0:00:28]} e6 {[%emt 0:00:18]} 3. Bf4 {[%emt 0:00:38]} c5 {[%emt 0:00:07]} 4. e3 {[%emt 0:00:18]} Qb6 {[%emt 0:00:35]} 5. Qc1 {[%emt 0:04:38]} Nc6 {[%emt 0:00:14]} 6. c3 {[%emt 0:01:43]} Nh5 {[%emt 0:00:10]} 7. Bg5 {[%emt 0:01:00]} h6 {[%emt 0:00:06]} 8. Bh4 {[%emt 0:00:05]} g5 {[%emt 0:00:11]} 9. Bg3 {[%emt 0:00:02]} Nxg3 {[%emt 0:00:16]} 10. hxg3 {[%emt 0:00:03]} Bg7 {[%emt 0:00:09]} 11. Nbd2 {[%emt 0:07:33]} d5 {[%emt 0:00:21]} 12. Bd3 {[%emt 0:03:10]} Bd7 {[%emt 0:09:00]} 13. dxc5 {[%emt 0:12:27]} Qxc5 {[%emt 0:00:18]} 14. Qc2 {[%emt 0:04:08]} Rc8 {[%emt 0:07:00]} 15. Qd1 {[%emt 0:03:21]} f5 {[%emt 1:19:07]} 16. Nd4 {[%emt 0:06:26]} Ne5 {[%emt 0:00:00]} 17. Qh5+ {[%emt 0:01:40]} Ke7 {[%emt 0:00:00]} 18. Be2 {[%emt 0:00:56]} Be8 {[%emt 0:01:30]} 19. Qh2 {[%emt 0:50:54]} Bg6 {[%emt 0:00:30]} 20. O-O-O {[%emt 0:00:00]} Qa5 {[%emt 0:00:30]} 21. Kb1 {[%emt 0:01:00]} Ng4 {[%emt 0:00:30]} 22. Qg1 {[%emt 0:00:30]} a6 {[%emt 0:00:30]} 23. Bd3 {[%emt 0:00:30]} b5 {[%emt 0:00:30]} 1/2-1/2

[Event "World Chess Trophy 2018"]
[Site "Tenerife"]
[Date "2018.06.21"]
[Round "6"]
[White "Kraus, Oliver"]
[Black "Cacciola, Alfredo"]
[Result "0-1"]
[ECO "A45"]
[WhiteElo "2044"]
[BlackElo "2219"]
[Annotator "NA"]
[PlyCount "62"]
[EventDate "2018.06.21"]
[EventType "swiss"]
[EventCountry "ESP"]
[SourceTitle "playchess.com"]
[Source "ChessBase"]
[SourceQuality "1"]
[TimeControl "5400+30"]

1. d4 {[%emt 0:00:00]} Nf6 {[%emt 0:00:03]} 2. Bg5 {[%emt 0:00:11]} Ne4 {[%emt 0:00:05]} 3. Bf4 {[%emt 0:00:45]} c5 {[%emt 0:00:05]} 4. f3 {[%emt 0:00:54]} Qa5+ {[%emt 0:00:12]} 5. c3 {[%emt 0:00:39]} Nf6 {[%emt 0:00:06]} 6. Nd2 {[%emt 0:03:00]} cxd4 {[%emt 0:00:04]} 7. Nb3 {[%emt 0:00:13]} Qd8 {[%emt 0:00:04]} 8. cxd4 {[%emt 0:03:23]} e6 {[%emt 0:00:08]} 9. e3 {[%emt 0:02:09]} Bb4+ {[%emt 0:00:12]} 10. Kf2 {[%emt 0:00:13]} Nc6 {[%emt 0:00:49]} 11. Bd3 {[%emt 0:01:52]} O-O {[%emt 0:01:33]} 12. Ne2 {[%emt 0:05:32]} Re8 {[%emt 0:02:22]} 13. a3 {[%emt 0:12:09]} Bf8 {[%emt 0:00:12]} 14. Qc2 {[%emt 0:02:38]} d6 {[%emt 0:01:01]} 15. Rad1 {[%emt 0:08:50]} h6 {[%emt 0:06:28]} 16. e4 {[%emt 0:14:32]} e5 {[%emt 0:02:47]} 17. Be3 {[%emt 0:01:05]} d5 {[%emt 0:05:19]} 18. Ng3 {[%emt 0:06:55]} dxe4 {[%emt 0:05:19]} 19. Bxe4 {[%emt 0:02:13]} Nxe4+ {[%emt 0:04:44]} 20. Nxe4 {[%emt 0:03:05]} exd4 {[%emt 0:00:53]} 21. Nxd4 {[%emt 0:01:11]} Nxd4 {[%emt 0:00:22]} 22. Bxd4 {[%emt 0:01:04]} Qa5 {[%emt 0:01:02]} 23. Qd2 {[%emt 0:04:28]} Qa6 {[%emt 0:06:45]} 24. Rhe1 {[%emt 0:06:00]} Bf5 {[%emt 0:03:34]} 25. Ng3 {[%emt 0:04:01]} Bg6 {[%emt 0:01:23]} 26. Rxe8 {[%emt 0:03:26]} Rxe8 {[%emt 0:00:05]} 27. Qc3 {[%emt 0:01:12]} h5 {[%emt 0:04:51]} 28. Re1 {[%emt 0:04:08]} Rd8 {[%emt 0:03:47]} 29. Ne4 {[%emt 0:01:54]} Qa4 {[%emt 0:02:33]} 30. Bc5 {[%emt 0:01:52]} Rc8 {[%emt 0:03:22]} 31. b3 {[%emt 0:04:42]} Qb5 {[%emt 0:45:50]} 0-1

[Event "World Chess Trophy 2018"]
[Site "Tenerife"]
[Date "2018.06.21"]
[Round "6"]
[White "Efremov, Vladislav"]
[Black "De Rosa, Mariagrazia"]
[Result "1-0"]
[ECO "A56"]
[WhiteElo "1968"]
[BlackElo "2120"]
[Annotator "ChessBase"]
[PlyCount "77"]
[EventDate "2018.06.21"]
[EventType "swiss"]
[EventCountry "ESP"]
[SourceTitle "playchess.com"]
[Source "ChessBase"]
[SourceQuality "1"]
[TimeControl "5400+30"]

1. d4 {[%emt 0:00:00]} Nf6 {[%emt 0:00:14]} 2. c4 {[%emt 0:00:00]} c5 {[%emt 0:00:24]} 3. d5 {[%emt 0:00:00]} e5 {[%emt 0:00:08]} 4. Nc3 {[%emt 0:00:19]} d6 {[%emt 0:00:42]} 5. e4 {[%emt 0:00:34]} Be7 {[%emt 0:00:14]} 6. g3 {[%emt 0:00:23]} h5 {[%emt 0:12:10]} 7. h4 {[%emt 1:32:14]} Nbd7 {[%emt 0:03:40]} 8. Qd3 {[%emt 0:00:00]} Nf8 {[%emt 0:01:10]} 9. Nge2 {[%emt 0:00:00]} Ng6 {[%emt 0:00:29]} 10. Bd2 {[%emt 0:00:00]} a6 {[%emt 0:00:33]} 11. a4 {[%emt 0:00:00]} b6 {[%emt 0:00:28]} 12. Bg2 {[%emt 0:00:00]} Rb8 {[%emt 0:09:01]} 13. Nd1 {[%emt 0:00:00]} O-O {[%emt 0:16:21]} 14. Ne3 {[%emt 0:00:00]} Re8 {[%emt 0:00:03]} 15. Nc3 {[%emt 0:00:00]} Bd7 {[%emt 0:01:29]} 16. Bh3 {[%emt 0:00:00]} b5 {[%emt 0:44:08]} 17. cxb5 {[%emt 0:00:00]} axb5 {[%emt 0:03:03]} 18. Bxd7 {[%emt 0:00:00]} Qxd7 {[%emt 0:00:30]} 19. Nxb5 {[%emt 0:00:00]} Rec8 {[%emt 0:00:30]} 20. Nf5 {[%emt 0:00:00]} Bf8 {[%emt 0:00:30]} 21. O-O {[%emt 0:00:00]} c4 {[%emt 0:00:30]} 22. Qf3 {[%emt 0:00:00]} Ra8 {[%emt 0:00:30]} 23. Bg5 {[%emt 0:00:00]} Ng4 {[%emt 0:00:30]} 24. Ra3 {[%emt 0:00:00]} Ra6 {[%emt 0:00:30]} 25. Qe2 {[%emt 0:00:00]} Ne7 {[%emt 0:00:30]} 26. Nxe7+ {[%emt 0:00:00]} Bxe7 {[%emt 0:00:30]} 27. Bxe7 {[%emt 0:00:00]} Qxe7 {[%emt 0:00:30]} 28. Rc1 {[%emt 0:00:00]} g5 {[%emt 0:00:30]} 29. f3 {[%emt 0:00:00]} Nh6 {[%emt 0:00:30]} 30. Rxc4 {[%emt 0:00:00]} Raa8 {[%emt 0:00:30]} 31. Rxc8+ {[%emt 0:00:00]} Rxc8 {[%emt 0:00:30]} 32. Rc3 {[%emt 0:00:00]} Rxc3 {[%emt 0:00:30]} 33. bxc3 {[%emt 0:00:00]} gxh4 {[%emt 0:00:30]} 34. gxh4 {[%emt 0:00:00]} Qxh4 {[%emt 0:00:30]} 35. Nxd6 {[%emt 0:00:00]} Kf8 {[%emt 0:00:30]} 36. Kg2 {[%emt 0:00:00]} Qg5+ {[%emt 0:00:30]} 37. Kh3 {[%emt 0:00:00]} Ng8 {[%emt 0:00:30]} 38. Qb5 {[%emt 0:00:00]} Qe7 {[%emt 0:00:30]} 39. Qb8+ {[%emt 0:00:00]} 1-0

[Event "World Chess Trophy 2018"]
[Site "Tenerife"]
[Date "2018.06.21"]
[Round "6"]
[White "Ciampi, Vincenzo"]
[Black "Rutherford, William"]
[Result "1-0"]
[ECO "A49"]
[WhiteElo "1959"]
[BlackElo "1959"]
[Annotator "NA RC"]
[PlyCount "83"]
[EventDate "2018.06.21"]
[EventType "swiss"]
[EventCountry "ESP"]
[SourceTitle "playchess.com"]
[Source "ChessBase"]
[SourceQuality "1"]
[TimeControl "5400+30"]

1. b3 {[%emt 0:00:30]} Nf6 {[%emt 0:00:11]} 2. Bb2 {[%emt 0:00:05]} g6 {[%emt 0:00:04]} 3. Nf3 {[%emt 0:00:14]} Bg7 {[%emt 0:00:20]} 4. g3 {[%emt 0:00:12]} O-O {[%emt 0:00:17]} 5. Bg2 {[%emt 0:00:05]} d6 {[%emt 0:00:07]} 6. d4 {[%emt 0:00:15]} a5 {[%emt 0:04:04]} 7. a4 {[%emt 0:00:53]} Na6 {[%emt 0:01:08]} 8. O-O {[%emt 0:00:54]} c6 {[%emt 0:01:13]} 9. Na3 {[%emt 0:00:58] A49: 1 d4 Nf6 2 Nf3 g6 3 g3: Anti-King's Indian systems} (9. Nbd2 d5 10. Re1 Bf5 11. Nh4 {½-½ (11) Pavlov,S (2502)-Manolache,M (2505) Corund 2017}) 9... Bd7 $146 {[%emt 0:02:49]} ({Predecessor:} 9... d5 10. Ne5 Ng4 11. Nd3 Nb4 12. h3 Nxd3 13. exd3 Nf6 14. Re1 h5 15. c3 Nh7 16. Nb1 Ng5 {½-½ (60) Voiska,M (2330)-Petrovic,M (2212) Zlatibor 2006}) 10. Re1 {[%emt 0:06:12]} Ne4 {[%emt 0:07:23]} 11. Nd2 {[%emt 0:02:40]} Nxd2 {[%emt 0:00:41]} 12. Qxd2 {[%emt 0:00:15]} d5 {[%emt 0:04:24]} 13. e4 {[%emt 0:05:48]} e6 {[%emt 0:00:53]} 14. c4 {[%emt 0:03:36]} Nc7 {[%emt 0:11:43]} 15. Rac1 {[%emt 0:11:08]} dxe4 {[%emt 0:10:09]} 16. Bxe4 {[%emt 0:01:17]} f5 {[%emt 0:05:33]} 17. Bg2 {[%emt 0:13:47]} f4 {[%emt 0:00:57]} 18. Re4 {[%emt 0:03:04]} Bh6 {[%emt 0:09:45]} 19. Bh3 {[%emt 0:14:39]} Rf7 {[%emt 0:11:47]} 20. Rd1 {[%emt 0:07:18]} Qf8 {[%emt 0:01:26]} 21. Qe2 {[%emt 0:01:06]} Qb4 {[%emt 0:06:32]} 22. Rd3 {[%emt 0:01:11]} Raf8 {[%emt 0:01:28]} 23. Nc2 {[%emt 0:00:51]} Qe7 {[%emt 0:03:02]} 24. Ba3 {[%emt 0:02:21]} Qd8 {[%emt 0:02:56]} 25. Bxf8 {[%emt 0:00:11]} Qxf8 {[%emt 0:00:27]} 26. f3 {[%emt 0:00:23]} fxg3 {[%emt 0:00:55]} 27. hxg3 {[%emt 0:00:20]} c5 {[%emt 0:02:27]} 28. dxc5 {[%emt 0:05:46]} Bc6 {[%emt 0:02:20]} 29. Bxe6 {[%emt 0:04:41]} Nxe6 {[%emt 0:01:59]} 30. Rxe6 {[%emt 0:00:12]} Qxc5+ {[%emt 0:00:29]} (30... Bxf3 $142 31. Qe1 Qxc5+ 32. Nd4 Bf8) 31. Kg2 {[%emt 0:03:12]} Qh5 {[%emt 0:01:14]} 32. Rxc6 {[%emt 0:02:26]} bxc6 {[%emt 0:00:08]} 33. Qe8+ {[%emt 0:00:25]} Bf8 {[%emt 0:01:27]} 34. Qxc6 {[%emt 0:00:23]} Qe5 {[%emt 0:00:19]} 35. Re3 {[%emt 0:05:35]} Qb2 {[%emt 0:00:24]} 36. Re2 {[%emt 0:01:46]} Qxb3 {[%emt 0:00:33]} 37. Ne3 {[%emt 0:00:26]} Qd3 {[%emt 0:00:41]} 38. Kf2 {[%emt 0:00:09]} Bd6 {[%emt 0:03:08]} 39. Ng4 {[%emt 0:02:51]} (39. Qe8+ $14 Rf8 40. Qe6+ Kh8 41. f4) 39... Qd4+ {[%emt 0:00:22]} (39... Bc5+ $11 40. Ne3 Qxc4) 40. Kg2 {[%emt 0:00:18]} Bf8 {[%emt 0:00:49]} (40... Kg7 $16 {keeps fighting.}) 41. Qd5 {[%emt 0:00:23]} Qc3 {[%emt 0:00:17]} 42. Ne5 $18 {[%emt 0:00:17]} 1-0

[Event "World Chess Trophy 2018"]
[Site "Tenerife"]
[Date "2018.06.21"]
[Round "6"]
[White "Grigioni, Giulio"]
[Black "Harstad, Christian"]
[Result "0-1"]
[ECO "B52"]
[WhiteElo "1818"]
[BlackElo "1985"]
[Annotator "NA RC"]
[PlyCount "32"]
[EventDate "2018.06.21"]
[EventType "swiss"]
[EventCountry "ESP"]
[SourceTitle "playchess.com"]
[Source "ChessBase"]
[SourceQuality "1"]
[TimeControl "5400+30"]

1. e4 {[%emt 0:00:00]} c5 {[%emt 0:00:05]} 2. Nf3 {[%emt 0:02:23]} d6 {[%emt 0:00:09]} 3. Bb5+ {[%emt 0:00:21]} Bd7 {[%emt 0:01:22]} 4. Qe2 {[%emt 0:00:37]} e6 {[%emt 0:00:30]} 5. O-O {[%emt 0:01:21]} Nc6 {[%emt 0:01:20]} 6. d4 {[%emt 0:01:38]} cxd4 {[%emt 0:06:13]} 7. Bxc6 {[%emt 0:06:00]} bxc6 {[%emt 0:02:41]} 8. Nxd4 {[%emt 0:01:54]} e5 {[%emt 0:06:30]} 9. Nb3 {[%emt 0:05:22]} f5 {[%emt 0:04:17]} 10. f4 {[%emt 0:01:23]} fxe4 {[%emt 0:04:46]} 11. c4 {[%emt 0:03:41]} Nf6 {[%emt 0:04:22]} 12. Nc3 {[%emt 0:02:41]} Be7 {[%emt 0:05:11]} 13. fxe5 {[%emt 0:01:39]} dxe5 {[%emt 0:00:31]} 14. Bg5 {[%emt 0:00:42]} O-O {[%emt 0:05:12]} 15. Nxe4 {[%emt 0:01:16]} a5 {[%emt 0:02:51]} 16. Nxf6+ {[%emt 0:01:36]} gxf6 {[%emt 0:02:07]} 0-1

[Event "World Chess Trophy 2018"]
[Site "Tenerife"]
[Date "2018.06.22"]
[Round "7"]
[White "Kohlweyer, Bernd"]
[Black "Franco, Victor"]
[Result "1/2-1/2"]
[ECO "A11"]
[WhiteElo "2345"]
[BlackElo "2126"]
[Annotator "NA"]
[PlyCount "22"]
[EventDate "2018.06.17"]
[EventType "swiss"]
[EventCountry "ESP"]
[SourceTitle "playchess.com"]
[Source "ChessBase"]
[SourceQuality "1"]
[TimeControl "5400+30"]

1. Nf3 {[%emt 0:00:00]} d5 {[%emt 0:00:26]} 2. c4 {[%emt 0:00:00]} c6 {[%emt 0:01:32]} 3. e3 {[%emt 0:00:39]} Nf6 {[%emt 0:00:52]} 4. Nc3 {[%emt 0:00:22]} e6 {[%emt 0:01:18]} 5. Qc2 {[%emt 0:01:13]} Nbd7 {[%emt 0:01:39]} 6. b3 {[%emt 0:00:07]} Bd6 {[%emt 0:02:21]} 7. Bb2 {[%emt 0:00:08]} O-O {[%emt 0:00:30]} 8. Be2 {[%emt 0:00:17]} Qe7 {[%emt 0:10:30]} 9. O-O {[%emt 0:01:03]} dxc4 10. bxc4 {[%emt 0:03:33]} e5 {[%emt 0:08:18]} 11. Ng5 {[%emt 0:00:07]} h6 {[%emt 0:13:14]} 1/2-1/2

[Event "World Chess Trophy 2018"]
[Site "Tenerife"]
[Date "2018.06.22"]
[Round "7"]
[White "Kosov, Alexey"]
[Black "Efremov, Vladislav"]
[Result "1/2-1/2"]
[ECO "B40"]
[WhiteElo "2208"]
[BlackElo "1968"]
[Annotator "NA"]
[PlyCount "52"]
[EventDate "2018.06.17"]
[EventType "swiss"]
[EventCountry "ESP"]
[SourceTitle "playchess.com"]
[Source "ChessBase"]
[SourceQuality "1"]
[TimeControl "5400+30"]

1. e4 {[%emt 0:00:00]} c5 {[%emt 0:00:13]} 2. Nf3 {[%emt 0:00:00]} e6 {[%emt 0:00:12]} 3. d4 {[%emt 0:00:00]} cxd4 {[%emt 0:00:05]} 4. Nxd4 {[%emt 0:00:00]} Nc6 5. Nxc6 {[%emt 0:12:21]} bxc6 {[%emt 0:00:25]} 6. Bd3 {[%emt 0:00:23]} e5 {[%emt 0:05:39]} 7. O-O {[%emt 0:03:06]} Nf6 {[%emt 0:04:41]} 8. c4 {[%emt 0:00:02]} Bc5 {[%emt 0:01:50]} 9. Bg5 {[%emt 0:03:05]} h6 {[%emt 0:03:30]} 10. Bh4 {[%emt 0:00:26]} O-O {[%emt 0:04:04]} 11. Nd2 {[%emt 0:03:36]} Re8 {[%emt 0:09:21]} 12. Nb3 {[%emt 0:07:02]} Be7 {[%emt 0:05:02]} 13. c5 {[%emt 0:00:28]} a5 {[%emt 0:03:45]} 14. Rc1 {[%emt 0:10:43]} Qc7 {[%emt 0:08:35]} 15. Qc2 {[%emt 0:01:44]} Nh7 {[%emt 0:04:05]} 16. Bg3 {[%emt 0:05:39]} Bg5 {[%emt 0:05:14]} 17. Rcd1 {[%emt 0:00:16]} Nf8 {[%emt 0:00:37]} 18. h4 {[%emt 0:03:45]} Be7 {[%emt 0:03:26]} 19. Qc3 {[%emt 0:09:08]} Bf6 {[%emt 0:03:26]} 20. Nd2 {[%emt 0:05:38]} Ne6 {[%emt 0:03:18]} 21. Nf3 {[%emt 0:00:09]} Nd8 {[%emt 0:03:49]} 22. h5 {[%emt 0:02:09]} Qb8 {[%emt 0:04:39]} 23. a3 {[%emt 0:03:50]} a4 {[%emt 0:00:18]} 24. Bc4 {[%emt 0:00:10]} Nb7 {[%emt 0:01:37]} 25. Ba2 {[%emt 0:03:34]} Ra5 {[%emt 0:02:28]} 26. Nd2 {[%emt 0:25:46]} Ra8 {[%emt 0:23:11]} 1/2-1/2

[Event "World Chess Trophy 2018"]
[Site "Tenerife"]
[Date "2018.06.22"]
[Round "7"]
[White "Pirrello, Christian"]
[Black "Mamani Beltran, Deniman"]
[Result "1-0"]
[ECO "D36"]
[WhiteElo "1935"]
[BlackElo "1656"]
[Annotator "NA"]
[PlyCount "67"]
[EventDate "2018.06.17"]
[EventType "swiss"]
[EventCountry "ESP"]
[SourceTitle "playchess.com"]
[Source "ChessBase"]
[SourceQuality "1"]
[TimeControl "5400+30"]

1. d4 {[%emt 0:00:00]} d5 {[%emt 0:00:21]} 2. c4 {[%emt 0:00:19]} e6 {[%emt 0:00:08]} 3. Nc3 {[%emt 0:00:06]} Nf6 {[%emt 0:00:19]} 4. cxd5 exd5 {[%emt 0:00:07]} 5. Bg5 {[%emt 0:00:16]} Be7 {[%emt 0:00:09]} 6. e3 {[%emt 0:00:05]} O-O {[%emt 0:00:23]} 7. Bd3 {[%emt 0:00:07]} c6 {[%emt 0:00:25]} 8. Qc2 {[%emt 0:00:05]} Nbd7 {[%emt 0:00:04]} 9. Nf3 {[%emt 0:00:06]} Re8 {[%emt 0:00:13]} 10. O-O {[%emt 0:00:07]} Nf8 {[%emt 0:00:19]} 11. Ne5 {[%emt 0:00:06]} N6d7 {[%emt 0:00:21]} 12. Bxe7 Qxe7 {[%emt 0:00:12]} 13. Nxd7 Bxd7 {[%emt 0:00:09]} 14. Rae1 {[%emt 0:01:18]} Qd6 {[%emt 0:00:37]} 15. f4 {[%emt 0:02:10]} Rac8 {[%emt 0:00:41]} 16. f5 {[%emt 0:01:46]} f6 {[%emt 0:02:23]} 17. Qf2 {[%emt 0:02:58]} c5 {[%emt 0:03:53]} 18. Ne2 {[%emt 0:07:39]} c4 {[%emt 0:01:44]} 19. Bb1 {[%emt 0:00:32]} b5 {[%emt 0:01:41]} 20. Nf4 {[%emt 0:02:38]} Bc6 {[%emt 0:00:18]} 21. Qh4 {[%emt 0:02:32]} Re7 {[%emt 0:01:50]} 22. Rf3 {[%emt 0:03:22]} Be8 {[%emt 0:01:00]} 23. Rh3 {[%emt 0:01:45]} g5 {[%emt 0:02:21]} 24. fxg6 {[%emt 0:00:51]} Bxg6 25. Nxg6 {[%emt 0:06:55]} hxg6 {[%emt 0:01:06]} 26. Qh8+ {[%emt 0:01:56]} Kf7 {[%emt 0:00:08]} 27. Bxg6+ {[%emt 0:02:03]} Ke6 {[%emt 0:06:01]} 28. Qg8+ {[%emt 0:00:29]} Kd7 {[%emt 0:00:15]} 29. Bf5+ {[%emt 0:00:06]} Ne6 {[%emt 0:00:09]} 30. Qg6 {[%emt 0:02:23]} Rf8 {[%emt 0:00:38]} 31. Rh7 {[%emt 0:06:19]} Kc6 {[%emt 0:00:22]} 32. Rxe7 Qxe7 {[%emt 0:00:10]} 33. e4 {[%emt 0:03:29]} Kd6 {[%emt 0:08:43]} 34. Qg3+ {[%emt 0:01:56]} 1-0